lending/lending_fUSD_20240131
["ID","MTS","AMOUNT","RATE_DAILY","PERIOD"]
[313095189,1706737850218,-500.0,0.00040547,5]
[313095190,1706737850227,-311.78080713,0.00040547,5]
[313095191,1706737850237,-500.0,0.00040547,5]
[313095192,1706737850246,-4167.99,0.00040547,5]
[313095193,1706737850255,-500.0,0.00040547,5]
[313095194,1706737850265,-500.0,0.00040547,5]
[313095195,1706737850274,-500.0,0.00040547,5]
[313095196,1706737850284,-570.1,0.00040547,5]
[313095197,1706737850293,-500.0,0.00040547,5]
[313095198,1706737850306,-627.38,0.00040547,5]
[313095199,1706737850315,-500.0,0.00040547,5]
[313095200,1706737850324,-318.52,0.0004071,2]
[313095201,1706737850333,-792.26,0.00040733,2]
[313095202,1706737850343,-182.0,0.00040772,7]
[313095203,1706737850352,-800.0,0.00041,2]
[313095204,1706737850363,-150.0,0.00041,16]
[313095205,1706737850373,-285.21213315,0.0004102,33]
[313095206,1706737850382,-500.0,0.00041095,5]
[313095207,1706737850391,-500.0,0.00041095,5]
[313095208,1706737850401,-500.0,0.00041095,5]
[313095209,1706737850411,-500.0,0.00041095,2]
[313095210,1706737850421,-500.0,0.00041095,7]
[313095211,1706737850430,-509.87503943,0.00041095,5]
[313095212,1706737850440,-500.0,0.00041095,2]
[313095213,1706737850450,-173.44537063,0.00041095,120]
[313095214,1706737850459,-500.0,0.00041095,2]
[313095215,1706737850469,-500.0,0.00041095,2]
[313095216,1706737850478,-223.290001,0.00041095,5]
[313095217,1706737850487,-500.0,0.00041095,5]
[313095218,1706737850497,-500.0,0.00041095,5]
[313095219,1706737850506,-414.90646093,0.00041095,2]
[313095220,1706737850515,-500.0,0.00041095,5]
[313095221,1706737850525,-500.0,0.00041095,5]
[313095222,1706737850534,-685.42,0.00041095,2]
[313095223,1706737850543,-500.0,0.00041095,5]
[313095224,1706737850553,-500.0,0.00041095,5]
[313095225,1706737850565,-500.0,0.00041095,5]
[313095226,1706737850574,-543.6252151,0.00041095,5]
[313095227,1706737850584,-500.0,0.00041095,5]
[313095228,1706737850594,-500.0,0.00041095,5]
[313095229,1706737850603,-547.58,0.00041095,5]
[313095230,1706737850612,-168.9537881,0.00041095,5]
[313095231,1706737850622,-402.1,0.00041095,5]
[313095232,1706737850631,-500.0,0.00041095,5]
[313095233,1706737850643,-500.0,0.00041095,5]
[313095234,1706737850653,-500.0,0.00041095,5]
[313095235,1706737850663,-500.0,0.00041095,5]
[313095236,1706737850672,-500.0,0.00041095,5]
[313095237,1706737850681,-842.96,0.00041095,5]
[313095238,1706737850690,-500.0,0.00041095,5]
[313095239,1706737850699,-500.0,0.00041095,5]
[313095240,1706737850709,-794.97,0.00041095,5]
[313095241,1706737850718,-406.0016882,0.00041095,5]
[313095242,1706737850727,-500.0,0.00041095,5]
[313095243,1706737850737,-500.0,0.00041095,5]
[313095244,1706737850747,-500.0,0.00041095,5]
[313095245,1706737850756,-500.0,0.00041095,5]
[313095246,1706737850766,-436.79782464,0.00041095,5]
[313095247,1706737850775,-500.0,0.00041095,5]
[313095248,1706737850784,-500.0,0.00041095,5]
[313095249,1706737850793,-500.0,0.00041095,5]
[313095250,1706737850803,-500.0,0.00041095,5]
[313095251,1706737850813,-500.0,0.00041095,5]
[313095252,1706737850823,-500.0,0.00041095,5]
[313095253,1706737850834,-500.0,0.00041095,5]
[313095254,1706737850844,-500.0,0.00041095,5]
[313095255,1706737850854,-500.0,0.00041095,5]
[313095256,1706737850864,-500.0,0.00041095,5]
[313095257,1706737850873,-500.0,0.00041095,5]
[313095258,1706737850882,-500.0,0.00041095,5]
[313095259,1706737850892,-337.64711845,0.00041095,5]
[313095260,1706737850902,-500.0,0.00041095,5]
[313095261,1706737850912,-500.0,0.00041095,5]
[313095262,1706737850922,-2136.82,0.00041095,5]
[313095263,1706737850932,-500.0,0.00041095,5]
[313095264,1706737850941,-500.0,0.00041095,5]
[313095265,1706737850951,-500.0,0.00041095,5]
[313095266,1706737850961,-500.0,0.00041095,5]
[313095267,1706737850975,-500.0,0.00041095,5]
[313095268,1706737850984,-752.74331383,0.00041095,7]
[313095269,1706737850994,-500.0,0.00041095,5]
[313095270,1706737851005,-500.0,0.00041095,5]
[313095271,1706737851015,-500.0,0.00041095,5]
[313095272,1706737851025,-500.0,0.00041095,5]
[313095273,1706737851036,-500.0,0.00041095,5]
[313095274,1706737851046,-500.0,0.00041095,5]
[313095275,1706737851055,-202.78610971,0.00041095,5]
[313095276,1706737851065,-500.0,0.00041095,5]
[313095277,1706737851075,-500.0,0.00041095,5]
[313095278,1706737851084,-676.55,0.00041095,5]
[313095279,1706737851094,-500.0,0.00041095,5]
[313095280,1706737851103,-500.0,0.00041095,5]
[313095281,1706737851113,-500.0,0.00041095,5]
[313095282,1706737851122,-500.0,0.00041095,5]
[313095283,1706737851133,-500.0,0.00041095,2]
[313095284,1706737851142,-500.0,0.00041095,5]
[313095285,1706737851152,-500.0,0.00041095,5]
[313095286,1706737851163,-500.0,0.00041095,5]
[313095287,1706737851172,-521.46945208,0.00041095,5]
[313095288,1706737851182,-500.0,0.00041095,5]
[313095289,1706737851193,-569.16,0.00041095,5]
[313095290,1706737851202,-358.17108323,0.00041095,5]
[313095291,1706737851212,-1100.98,0.00041095,5]
[313095292,1706737851222,-500.0,0.00041095,5]
[313095293,1706737851232,-1246.27,0.00041095,5]
[313095294,1706737851242,-500.0,0.00041095,5]
[313095295,1706737851252,-597.38,0.00041095,5]
[313095296,1706737851261,-811.79,0.00041095,5]
[313095297,1706737851270,-531.63,0.00041095,5]
[313095298,1706737851280,-682.34,0.00041095,5]
[313095299,1706737851289,-500.0,0.00041095,5]
[313095300,1706737851298,-500.0,0.00041095,5]
[313095301,1706737851308,-529.12615311,0.00041095,5]
[313095302,1706737851317,-500.0,0.00041095,5]
[313095303,1706737851326,-500.0,0.00041095,5]
[313095304,1706737851336,-500.0,0.00041095,5]
[313095305,1706737851345,-500.0,0.00041095,5]
[313095306,1706737851355,-500.0,0.00041095,5]
[313095307,1706737851364,-500.0,0.00041095,5]
[313095308,1706737851373,-4167.99,0.00041095,5]
[313095309,1706737851384,-543.77087399,0.00041095,5]
[313095310,1706737851394,-500.0,0.00041095,5]
[313095311,1706737851403,-500.0,0.00041095,5]
[313095312,1706737851412,-570.1,0.00041095,5]
[313095313,1706737851421,-500.0,0.00041095,5]
[313095314,1706737851430,-627.38,0.00041095,5]
[313095315,1706737851439,-500.0,0.00041095,5]
[313095316,1706737851448,-1810.58,0.00041095,5]
[313095317,1706737851458,-179.28,0.00041096,2]
[313095318,1706737851468,-150.0,0.00041096,2]
[313095319,1706737851477,-151.77,0.00041096,2]
[313095320,1706737851487,-182.0,0.00041118,7]
[313095321,1706737851497,-614.61,0.000413,4]
[313095322,1706737851507,-614.61,0.000413,4]
[313095323,1706737851516,-614.61,0.000413,4]
[313095324,1706737851526,-614.61,0.000413,4]
[313095325,1706737851535,-614.61,0.000413,4]
[313095326,1706737851545,-614.61,0.000413,4]
[313095327,1706737851555,-614.61,0.000413,4]
[313095328,1706737851568,-614.61,0.000413,4]
[313095329,1706737851577,-614.61,0.000413,4]
[313095330,1706737851587,-614.61,0.000413,4]
[313095331,1706737851597,-614.61,0.000413,4]
[313095332,1706737851607,-614.61,0.000413,4]
[313095333,1706737851617,-614.61,0.000413,4]
[313095334,1706737851627,-614.61,0.000413,4]
[313095335,1706737851638,-614.61,0.000413,4]
[313095336,1706737851648,-614.61,0.000413,4]
[313095337,1706737851661,-614.61,0.000413,4]
[313095338,1706737851671,-614.61,0.000413,4]
[313095339,1706737851680,-614.61,0.000413,4]
[313095340,1706737851690,-614.61,0.000413,4]
[313095341,1706737851699,-349.57725089,0.00041317,13]
[313095342,1706737851708,-356.65151244,0.00041387,15]
[313095343,1706737851717,-182.0,0.00041463,7]
[313095344,1706737851726,-318.52,0.0004152,2]
[313095345,1706737851735,-184.24842456,0.00041522,4]
[313095346,1706737851745,-1000.0,0.000416,2]
[313095347,1706737851754,-151.55843082,0.00041633,2]
[313095348,1706737851763,-500.0,0.00041643,5]
[313095349,1706737851773,-500.0,0.00041643,5]
[313095350,1706737851782,-500.0,0.00041643,5]
[313095351,1706737851791,-500.0,0.00041643,2]
[313095352,1706737851800,-500.0,0.00041643,7]
[313095353,1706737851810,-500.0,0.00041643,2]
[313095354,1706737851819,-500.0,0.00041643,2]
[313095355,1706737851829,-500.0,0.00041643,2]
[313095356,1706737851838,-500.0,0.00041643,5]
[313095357,1706737851847,-500.0,0.00041643,5]
[313095358,1706737851857,-500.0,0.00041643,5]
[313095359,1706737851866,-500.0,0.00041643,5]
[313095360,1706737851875,-685.42,0.00041643,2]
[313095361,1706737851885,-500.0,0.00041643,5]
[313095362,1706737851894,-500.0,0.00041643,5]
[313095363,1706737851903,-500.0,0.00041643,5]
[313095364,1706737851913,-500.0,0.00041643,5]
[313095365,1706737851922,-500.0,0.00041643,5]
[313095366,1706737851931,-547.58,0.00041643,5]
[313095367,1706737851943,-394.62455462,0.00041643,5]
[313095368,1706737851952,-500.0,0.00041643,5]
[313095369,1706737851962,-500.0,0.00041643,5]
[313095370,1706737851971,-500.0,0.00041643,5]
[313095371,1706737851981,-500.0,0.00041643,5]
[313095372,1706737851992,-842.96,0.00041643,5]
[313095373,1706737852002,-500.0,0.00041643,5]
[313095374,1706737852012,-500.47602371,0.00041643,5]
[313095375,1706737852022,-794.97,0.00041643,5]
[313095376,1706737852033,-500.0,0.00041643,5]
[313095377,1706737852043,-500.0,0.00041643,5]
[313095378,1706737852053,-500.0,0.00041643,5]
[313095379,1706737852063,-649.9906525,0.00041643,5]
[313095380,1706737852073,-509.53919967,0.00041643,5]
[313095381,1706737852083,-500.0,0.00041643,5]
[313095382,1706737852093,-500.0,0.00041643,5]
[313095383,1706737852103,-500.0,0.00041643,5]
[313095384,1706737852113,-596.15,0.00041643,5]
[313095385,1706737852122,-500.0,0.00041643,5]
[313095386,1706737852133,-500.0,0.00041643,5]
[313095387,1706737852143,-500.0,0.00041643,5]
[313095388,1706737852154,-201.67286997,0.00041643,5]
[313095389,1706737852163,-500.0,0.00041643,5]
[313095390,1706737852174,-500.0,0.00041643,5]
[313095391,1706737852183,-500.0,0.00041643,5]
[313095392,1706737852196,-500.0,0.00041643,5]
[313095393,1706737852206,-500.0,0.00041643,5]
[313095394,1706737852216,-2136.82,0.00041643,5]
[313095395,1706737852226,-480.10433414,0.00041643,5]
[313095396,1706737852236,-500.0,0.00041643,5]
[313095397,1706737852246,-500.0,0.00041643,5]
[313095398,1706737852256,-312.39150354,0.00041643,5]
[313095399,1706737852266,-500.0,0.00041643,5]
[313095400,1706737852276,-500.0,0.00041643,5]
[313095401,1706737852285,-500.0,0.00041643,5]
[313095402,1706737852295,-500.0,0.00041643,5]
[313095403,1706737852306,-191.79029472,0.00041643,5]
[313095404,1706737852315,-264.12035976,0.00041643,5]
[313095405,1706737852325,-338.13944781,0.00041643,5]
[313095406,1706737852335,-500.0,0.00041643,5]
[313095407,1706737852345,-500.0,0.00041643,5]
[313095408,1706737852354,-676.55,0.00041643,5]
[313095409,1706737852365,-500.0,0.00041643,5]
[313095410,1706737852375,-500.0,0.00041643,5]
[313095411,1706737852384,-500.0,0.00041643,5]
[313095412,1706737852394,-500.0,0.00041643,5]
[313095413,1706737852403,-500.0,0.00041643,2]
[313095414,1706737852413,-264.17285526,0.00041643,5]
[313095415,1706737852423,-500.0,0.00041643,5]
[313095416,1706737852433,-500.0,0.00041643,5]
[313095417,1706737852443,-394.76965466,0.00041643,5]
[313095418,1706737852453,-569.16,0.00041643,5]
[313095419,1706737852463,-1100.98,0.00041643,5]
[313095420,1706737852473,-500.0,0.00041643,5]
[313095421,1706737852483,-1246.27,0.00041643,5]
[313095422,1706737852493,-500.0,0.00041643,5]
[313095423,1706737852503,-597.38,0.00041643,5]
[313095424,1706737852513,-811.79,0.00041643,5]
[313095425,1706737852523,-531.63,0.00041643,5]
[313095426,1706737852532,-682.34,0.00041643,5]
[313095427,1706737852542,-575.15268311,0.00041643,5]
[313095428,1706737852552,-500.0,0.00041643,5]
[313095429,1706737852562,-500.0,0.00041643,5]
[313095430,1706737852573,-500.0,0.00041643,5]
[313095431,1706737852583,-500.0,0.00041643,5]
[313095432,1706737852593,-500.0,0.00041643,5]
[313095433,1706737852603,-500.0,0.00041643,5]
[313095434,1706737852614,-500.0,0.00041643,5]
[313095435,1706737852623,-4167.99,0.00041643,5]
[313095436,1706737852634,-500.0,0.00041643,5]
[313095437,1706737852646,-500.0,0.00041643,5]
[313095438,1706737852658,-570.1,0.00041643,5]
[313095439,1706737852669,-500.0,0.00041643,5]
[313095440,1706737852678,-627.38,0.00041643,5]
[313095441,1706737852688,-500.0,0.00041643,5]
[313095442,1706737852698,-585.9496971,0.00041754,5]
[313095443,1706737852708,-1691.0,0.0004199,2]
[313095444,1706737852717,-1147.0,0.0004199,2]
[313095445,1706737852727,-238.92681927,0.00041996,2]
[313095446,1706737852736,-4626.45704338,0.00042,20]
[313095447,1706737852746,-1208.33590873,0.00042,4]
[313095448,1706737852756,-11667.20709456,0.00042,30]
[313095449,1706737852766,-2746.62722422,0.00042,7]
[313095450,1706737852775,-33881.27921036,0.00042,4]
[313095451,1706737852785,-2229.922216,0.00042,4]
[313095452,1706737852794,-155.0,0.00042,30]
[313095453,1706737852804,-4626.45704338,0.00042,20]
[313095454,1706737852813,-200.0,0.00042,2]
[313095455,1706737852822,-960.39447797,0.00042,7]
[313095456,1706737852832,-335.29,0.00042,7]
[313095457,1706737852842,-249.582674,0.00042,17]
[313095458,1706737852851,-29065.0,0.00042065,2]
[313095459,1706737852861,-666.0,0.000421,4]
[313095460,1706737852870,-150.0,0.00042177,2]
[313095461,1706737852879,-500.0,0.00042191,5]
[313095462,1706737852890,-459.46448267,0.00042191,5]
[313095463,1706737852900,-500.0,0.00042191,5]
[313095464,1706737852910,-500.0,0.00042191,2]
[313095465,1706737852919,-500.0,0.00042191,7]
[313095466,1706737852929,-473.87651811,0.00042191,2]
[313095467,1706737852939,-500.0,0.00042191,2]
[313095468,1706737852955,-428.71539622,0.00042191,2]
[313095469,1706737852964,-500.0,0.00042191,5]
[313095470,1706737852974,-500.0,0.00042191,5]
[313095471,1706737852983,-255.80120271,0.00042191,5]
[313095472,1706737852993,-500.0,0.00042191,5]
[313095473,1706737853004,-685.42,0.00042191,2]
[313095474,1706737853014,-500.0,0.00042191,5]
[313095475,1706737853024,-500.0,0.00042191,5]
[313095476,1706737853034,-500.0,0.00042191,5]
[313095477,1706737853044,-500.0,0.00042191,5]
[313095478,1706737853054,-560.96757542,0.00042191,5]
[313095479,1706737853064,-547.58,0.00042191,5]
[313095480,1706737853073,-500.0,0.00042191,5]
[313095481,1706737853083,-500.0,0.00042191,5]
[313095482,1706737853092,-500.0,0.00042191,5]
[313095483,1706737853103,-500.0,0.00042191,5]
[313095484,1706737853114,-842.96,0.00042191,5]
[313095485,1706737853124,-500.0,0.00042191,5]
[313095486,1706737853133,-794.97,0.00042191,5]
[313095487,1706737853143,-500.0,0.00042191,5]
[313095488,1706737853153,-500.0,0.00042191,5]
[313095489,1706737853163,-560.75601146,0.00042191,5]
[313095490,1706737853174,-500.0,0.00042191,5]
[313095491,1706737853184,-500.0,0.00042191,5]
[313095492,1706737853195,-500.0,0.00042191,5]
[313095493,1706737853204,-500.0,0.00042191,5]
[313095494,1706737853214,-214.16606441,0.00042191,5]
[313095495,1706737853224,-500.0,0.00042191,5]
[313095496,1706737853234,-500.0,0.00042191,5]
[313095497,1706737853244,-500.0,0.00042191,5]
[313095498,1706737853254,-500.0,0.00042191,5]
[313095499,1706737853264,-616.41223259,0.00042191,5]
[313095500,1706737853273,-500.0,0.00042191,5]
[313095501,1706737853283,-2136.82,0.00042191,5]
[313095502,1706737853293,-500.0,0.00042191,5]
[313095503,1706737853305,-500.0,0.00042191,5]
[313095504,1706737853315,-500.0,0.00042191,5]
[313095505,1706737853325,-500.0,0.00042191,5]
[313095506,1706737853336,-500.0,0.00042191,5]
[313095507,1706737853346,-500.0,0.00042191,5]
[313095508,1706737853355,-500.0,0.00042191,5]
[313095509,1706737853365,-500.0,0.00042191,5]
[313095510,1706737853376,-676.55,0.00042191,5]
[313095511,1706737853386,-500.0,0.00042191,5]
[313095512,1706737853396,-500.0,0.00042191,5]
[313095513,1706737853405,-500.0,0.00042191,5]
[313095514,1706737853416,-484.77193854,0.00042191,5]
[313095515,1706737853426,-500.0,0.00042191,2]
[313095516,1706737853444,-500.0,0.00042191,5]
[313095517,1706737853454,-456.73193368,0.00042191,5]
[313095518,1706737853464,-569.16,0.00042191,5]
[313095519,1706737853476,-1100.98,0.00042191,5]
[313095520,1706737853486,-500.0,0.00042191,5]
[313095521,1706737853495,-1246.27,0.00042191,5]
[313095522,1706737853507,-500.0,0.00042191,5]
[313095523,1706737853519,-597.38,0.00042191,5]
[313095524,1706737853529,-811.79,0.00042191,5]
[313095525,1706737853539,-531.63,0.00042191,5]
[313095526,1706737853549,-682.34,0.00042191,5]
[313095527,1706737853559,-500.0,0.00042191,5]
[313095528,1706737853572,-500.0,0.00042191,5]
[313095529,1706737853582,-500.0,0.00042191,5]
[313095530,1706737853592,-500.0,0.00042191,5]
[313095531,1706737853604,-500.0,0.00042191,5]
[313095532,1706737853614,-500.0,0.00042191,5]
[313095533,1706737853625,-473.53755295,0.00042191,5]
[313095534,1706737853635,-4167.99,0.00042191,5]
[313095535,1706737853646,-500.0,0.00042191,5]
[313095536,1706737853655,-536.28728945,0.00042191,5]
[313095537,1706737853665,-570.1,0.00042191,5]
[313095538,1706737853674,-503.28238112,0.00042191,5]
[313095539,1706737853685,-627.38,0.00042191,5]
[313095540,1706737853694,-406.74709309,0.00042191,5]
[313095541,1706737853704,-792.26,0.00042205,2]
[313095542,1706737853714,-475.112832,0.0004233,2]
[313095543,1706737853723,-8853.5044,0.00042353,7]
[313095544,1706737853734,-157.99890424,0.00042353,2]
[313095545,1706737853745,-6658.0,0.00042353,120]
[313095546,1706737853754,-2979.40192475,0.00042353,2]
[313095547,1706737853764,-679.0,0.000424,7]
[313095548,1706737853774,-791.65,0.00042442,2]
[313095549,1706737853786,-1000.0,0.000425,2]
[313095550,1706737853796,-223.65,0.00042521,2]
[313095551,1706737853805,-151.0,0.00042707,2]
[313095552,1706737853815,-500.0,0.00042739,5]
[313095553,1706737853825,-500.0,0.00042739,5]
[313095554,1706737853835,-311.36166829,0.00042739,2]
[313095555,1706737853845,-500.0,0.00042739,7]
[313095556,1706737853855,-396.55077445,0.00042739,2]
[313095557,1706737853865,-500.0,0.00042739,5]
[313095558,1706737853874,-320.97684417,0.00042739,5]
[313095559,1706737853884,-500.0,0.00042739,5]
[313095560,1706737853894,-685.42,0.00042739,2]
[313095561,1706737853904,-500.0,0.00042739,5]
[313095562,1706737853913,-500.0,0.00042739,5]
[313095563,1706737853923,-500.0,0.00042739,5]
[313095564,1706737853934,-500.0,0.00042739,5]
[313095565,1706737853943,-547.58,0.00042739,5]
[313095566,1706737853953,-573.11471943,0.00042739,5]
[313095567,1706737853963,-500.0,0.00042739,5]
[313095568,1706737853973,-500.0,0.00042739,5]
[313095569,1706737853983,-500.0,0.00042739,5]
[313095570,1706737853993,-842.96,0.00042739,5]
[313095571,1706737854003,-500.0,0.00042739,5]
[313095572,1706737854013,-794.97,0.00042739,5]
[313095573,1706737854023,-500.0,0.00042739,5]
[313095574,1706737854033,-500.0,0.00042739,5]
[313095575,1706737854043,-500.0,0.00042739,5]
[313095576,1706737854053,-500.0,0.00042739,5]
[313095577,1706737854063,-500.0,0.00042739,5]
[313095578,1706737854073,-500.0,0.00042739,5]
[313095579,1706737854085,-245.22506497,0.00042739,5]
[313095580,1706737854096,-500.0,0.00042739,5]
[313095581,1706737854106,-500.0,0.00042739,5]
[313095582,1706737854116,-500.0,0.00042739,5]
[313095583,1706737854126,-311.83464209,0.00042739,5]
[313095584,1706737854138,-2136.82,0.00042739,5]
[313095585,1706737854150,-500.0,0.00042739,5]
[313095586,1706737854159,-500.0,0.00042739,5]
[313095587,1706737854170,-642.35242595,0.00042739,5]
[313095588,1706737854180,-500.0,0.00042739,5]
[313095589,1706737854190,-500.0,0.00042739,5]
[313095590,1706737854201,-500.0,0.00042739,5]
[313095591,1706737854211,-500.0,0.00042739,5]
[313095592,1706737854221,-500.0,0.00042739,5]
[313095593,1706737854231,-676.55,0.00042739,5]
[313095594,1706737854241,-500.0,0.00042739,5]
[313095595,1706737854251,-500.0,0.00042739,5]
[313095596,1706737854261,-390.41662971,0.00042739,5]
[313095597,1706737854271,-500.0,0.00042739,2]
[313095598,1706737854281,-500.0,0.00042739,5]
[313095599,1706737854291,-569.16,0.00042739,5]
[313095600,1706737854301,-1100.98,0.00042739,5]
[313095601,1706737854318,-500.0,0.00042739,5]
[313095602,1706737854556,-1246.27,0.00042739,5]
[313095603,1706737854568,-500.0,0.00042739,5]
[313095604,1706737854578,-597.38,0.00042739,5]
[313095605,1706737854587,-811.79,0.00042739,5]
[313095606,1706737854597,-531.63,0.00042739,5]
[313095607,1706737854606,-682.34,0.00042739,5]
[313095608,1706737854615,-500.0,0.00042739,5]
[313095609,1706737854625,-500.0,0.00042739,5]
[313095610,1706737854636,-500.0,0.00042739,5]
[313095611,1706737854646,-255.90364335,0.00042739,5]
[313095612,1706737854655,-500.0,0.00042739,5]
[313095613,1706737854664,-500.0,0.00042739,5]
[313095614,1706737854673,-4167.99,0.00042739,5]
[313095615,1706737854682,-500.0,0.00042739,5]
[313095616,1706737854692,-570.1,0.00042739,5]
[313095617,1706737854703,-627.38,0.00042739,5]
[313095618,1706737854713,-1032.99588156,0.00043,30]
[313095619,1706737854723,-150.0,0.00043259,2]
[313095620,1706737854733,-500.0,0.00043287,5]
[313095621,1706737854742,-500.0,0.00043287,5]
[313095622,1706737854752,-500.0,0.00043287,7]
[313095623,1706737854761,-500.0,0.00043287,5]
[313095624,1706737854770,-500.0,0.00043287,5]
[313095625,1706737854780,-685.42,0.00043287,2]
[313095626,1706737854789,-500.0,0.00043287,5]
[313095627,1706737854798,-500.0,0.00043287,5]
[313095628,1706737854808,-500.0,0.00043287,5]
[313095629,1706737854818,-500.0,0.00043287,5]
[313095630,1706737854828,-547.58,0.00043287,5]
[313095631,1706737854837,-500.0,0.00043287,5]
[313095632,1706737854846,-500.0,0.00043287,5]
[313095633,1706737854855,-500.0,0.00043287,5]
[313095634,1706737854865,-842.96,0.00043287,5]
[313095635,1706737854874,-500.0,0.00043287,5]
[313095636,1706737854884,-794.97,0.00043287,5]
[313095637,1706737854893,-500.0,0.00043287,5]
[313095638,1706737854902,-500.0,0.00043287,5]
[313095639,1706737854912,-500.0,0.00043287,5]
[313095640,1706737854922,-500.0,0.00043287,5]
[313095641,1706737854932,-500.0,0.00043287,5]
[313095642,1706737854945,-500.0,0.00043287,5]
[313095643,1706737854955,-500.0,0.00043287,5]
[313095644,1706737854964,-319.36908399,0.00043287,5]
[313095645,1706737854974,-500.0,0.00043287,5]
[313095646,1706737854983,-2136.82,0.00043287,5]
[313095647,1706737854993,-500.0,0.00043287,5]
[313095648,1706737855005,-500.0,0.00043287,5]
[313095649,1706737855015,-500.0,0.00043287,5]
[313095650,1706737855025,-500.0,0.00043287,5]
[313095651,1706737855035,-243.44846454,0.00043287,5]
[313095652,1706737855044,-500.0,0.00043287,5]
[313095653,1706737855054,-500.0,0.00043287,5]
[313095654,1706737855063,-676.55,0.00043287,5]
[313095655,1706737855073,-500.0,0.00043287,5]
[313095656,1706737855082,-500.0,0.00043287,5]
[313095657,1706737855091,-500.0,0.00043287,2]
[313095658,1706737855100,-500.0,0.00043287,5]
[313095659,1706737855109,-569.16,0.00043287,5]
[313095660,1706737855119,-1100.98,0.00043287,5]
[313095661,1706737855128,-500.0,0.00043287,5]
[313095662,1706737855137,-1246.27,0.00043287,5]
[313095663,1706737855147,-500.0,0.00043287,5]
[313095664,1706737855157,-597.38,0.00043287,5]
[313095665,1706737855166,-811.79,0.00043287,5]
[313095666,1706737855176,-531.63,0.00043287,5]
[313095667,1706737855187,-682.34,0.00043287,5]
[313095668,1706737855199,-500.0,0.00043287,5]
[313095669,1706737855208,-500.0,0.00043287,5]
[313095670,1706737855218,-500.0,0.00043287,5]
[313095671,1706737855227,-500.0,0.00043287,5]
[313095672,1706737855237,-500.0,0.00043287,5]
[313095673,1706737855248,-4167.99,0.00043287,5]
[313095674,1706737855258,-500.0,0.00043287,5]
[313095675,1706737855268,-570.1,0.00043287,5]
[313095676,1706737855277,-627.38,0.00043287,5]
[313095677,1706737855287,-481.97511692,0.000433,30]
[313095678,1706737855296,-585.9496971,0.00043333,5]
[313095679,1706737855305,-679.0,0.000434,7]
[313095680,1706737855315,-335.29,0.000435,7]
[313095681,1706737855324,-155.68289657,0.00043653,20]
[313095682,1706737855333,-902.22247353,0.00043674,18]
[313095683,1706737855343,-792.26,0.00043677,2]
[313095684,1706737855352,-356.65151244,0.00043756,18]
[313095685,1706737855361,-600.0,0.00043835,5]
[313095686,1706737855370,-600.0,0.00043835,5]
[313095687,1706737855380,-600.0,0.00043835,5]
[313095688,1706737855389,-600.0,0.00043835,5]